[Event "*** Titled Tuesday 3|2 Blitz"]
[Site "Chess.com"]
[Date "2016.02.02"]
[Round "2"]
[White "AlexanderL"]
[Black "Matibar"]
[Result "0-1"]
[WhiteElo "2577"]
[BlackElo "2466"]
[TimeControl "180+2"]
[EndTime "11:27:13 PST"]
[Termination "Matibar won by resignation"]

1. d4 {[%clk 0:03:01.9]} 1... f5 {[%clk 0:02:57.5]} 2. Bg5 {[%clk 0:02:57.7]}
2... g6 {[%clk 0:02:55.9]} 3. Nd2 {[%clk 0:02:58.2]} 3... Bg7 {[%clk 0:02:56.8]}
4. e3 {[%clk 0:02:57.4]} 4... Nc6 {[%clk 0:02:39.8]} 5. Ngf3 {[%clk 0:02:54.2]}
5... d6 {[%clk 0:02:34.5]} 6. c3 {[%clk 0:02:52.9]} 6... h6 {[%clk 0:02:34.2]}
7. Bh4 {[%clk 0:02:52]} 7... Nf6 {[%clk 0:02:34.7]} 8. Qb3 {[%clk 0:02:45.8]}
8... g5 {[%clk 0:02:33.6]} 9. Bg3 {[%clk 0:02:46.4]} 9... e6 {[%clk 0:02:35.1]}
10. Bd3 {[%clk 0:02:40]} 10... Qe7 {[%clk 0:02:27.2]} 11. O-O-O {[%clk
0:02:39.9]} 11... b6 {[%clk 0:02:22.8]} 12. h4 {[%clk 0:02:29.2]} 12... g4
{[%clk 0:02:23.1]} 13. Ng1 {[%clk 0:02:29.7]} 13... Nh5 {[%clk 0:01:46.4]} 14.
Ne2 {[%clk 0:02:28.4]} 14... Bd7 {[%clk 0:01:38.4]} 15. Nf4 {[%clk 0:02:08.3]}
15... Nxf4 {[%clk 0:01:38]} 16. exf4 {[%clk 0:02:08.6]} 16... d5 {[%clk
0:01:37.4]} 17. Rde1 {[%clk 0:01:33.6]} 17... O-O {[%clk 0:01:34]} 18. f3 {[%clk
0:01:31.3]} 18... h5 {[%clk 0:01:33.1]} 19. fxg4 {[%clk 0:01:30.3]} 19... hxg4
{[%clk 0:01:35]} 20. h5 {[%clk 0:01:31.1]} 20... Bh6 {[%clk 0:01:36.6]} 21. Bh4
{[%clk 0:01:27.3]} 21... Qg7 {[%clk 0:01:37.6]} 22. g3 {[%clk 0:01:25.6]} 22...
Na5 {[%clk 0:01:38.8]} 23. Qd1 {[%clk 0:01:23]} 23... c5 {[%clk 0:01:39.7]} 24.
Nb3 {[%clk 0:01:15.3]} 24... Nxb3+ {[%clk 0:01:35.9]} 25. axb3 {[%clk 0:01:15]}
25... cxd4 {[%clk 0:01:36.5]} 26. c4 {[%clk 0:01:16.1]} 26... dxc4 {[%clk
0:01:18]} 27. Bxc4 {[%clk 0:01:16.1]} 27... Rfe8 {[%clk 0:01:15.9]} 28. Kb1
{[%clk 0:01:12.3]} 28... b5 {[%clk 0:01:16.8]} 29. Bd3 {[%clk 0:01:09.1]} 29...
e5 {[%clk 0:01:18]} 30. fxe5 {[%clk 0:01:06.6]} 30... Rxe5 {[%clk 0:01:19]} 31.
Rxe5 {[%clk 0:01:07.4]} 31... Qxe5 {[%clk 0:01:20.9]} 32. Re1 {[%clk 0:01:07.8]}
32... Be3 {[%clk 0:01:19.6]} 33. Bg5 {[%clk 0:01:02.6]} 33... Re8 {[%clk
0:01:19.3]} 34. Bf4 {[%clk 0:00:59.6]} 34... Qf6 {[%clk 0:01:12.2]} 35. Rf1
{[%clk 0:00:59.8]} 35... Kh8 {[%clk 0:00:55.4]} 36. h6 {[%clk 0:00:51]} 36... a6
{[%clk 0:00:54.3]} 37. Qc2 {[%clk 0:00:48.2]} 37... Bxf4 {[%clk 0:00:42.9]} 38.
Rxf4 {[%clk 0:00:47.7]} 38... Re1+ {[%clk 0:00:43.3]} 39. Ka2 {[%clk 0:00:47.3]}
39... Qb6 {[%clk 0:00:42.9]} 40. Qd2 {[%clk 0:00:46.2]} 40... Re3 {[%clk
0:00:40.4]} 41. Qb4 {[%clk 0:00:38.8]} 41... Qf6 {[%clk 0:00:37.3]} 42. Rxd4
{[%clk 0:00:28.9]} 42... Be6 {[%clk 0:00:35.5]} 43. Rd6 {[%clk 0:00:23.9]} 43...
Kh7 {[%clk 0:00:36.5]} 44. Qc5 {[%clk 0:00:15.2]} 44... Re5 {[%clk 0:00:31.2]}
45. Qd4 {[%clk 0:00:13.7]} 45... Kxh6 {[%clk 0:00:27]} 46. Rxa6 {[%clk
0:00:14.7]} 46... Kh5 {[%clk 0:00:15.7]} 47. Ra8 {[%clk 0:00:05.3]} 47... Qg7
{[%clk 0:00:13.1]} 48. Ra5 {[%clk 0:00:04.6]} 48... Qc7 {[%clk 0:00:10.9]} 49.
Qc3 {[%clk 0:00:04]} 49... Qxc3 {[%clk 0:00:11.4]} 50. bxc3 {[%clk 0:00:05.2]}
50... Re3 {[%clk 0:00:12.3]} 51. Bxb5 {[%clk 0:00:04.7]} 51... Rxg3 {[%clk
0:00:13.4]} 52. Kb2 {[%clk 0:00:04.9]} 52... Kh4 {[%clk 0:00:13.9]} 53. Ra6
{[%clk 0:00:04.6]} 53... Re3 {[%clk 0:00:15]} 54. c4 {[%clk 0:00:04.3]} 54... g3
{[%clk 0:00:16.2]} 55. Bc6 {[%clk 0:00:05.1]} 55... f4 {[%clk 0:00:17.5]} 56.
Ra8 {[%clk 0:00:05.4]} 56... f3 {[%clk 0:00:17.1]} 57. Rh8+ {[%clk 0:00:06.3]}
57... Kg5 {[%clk 0:00:18]} 58. Rf8 {[%clk 0:00:06.2]} 58... g2 {[%clk
0:00:17.5]} 0-1

[Event "*** Titled Tuesday 3|2 Blitz"]
[Site "Chess.com"]
[Date "2016.02.02"]
[Round "2"]
[White "mssjust"]
[Black "HansCoolNiemann"]
[Result "1-0"]
[WhiteElo "2433"]
[BlackElo "2214"]
[TimeControl "180+2"]
[EndTime "11:27:35 PST"]
[Termination "mssjust won by checkmate"]

1. e4 {[%clk 0:03:00.8]} 1... e6 {[%clk 0:02:57.8]} 2. d4 {[%clk 0:02:59.6]}
2... d5 {[%clk 0:02:57.8]} 3. Nd2 {[%clk 0:03:00.5]} 3... c5 {[%clk 0:02:55.7]}
4. exd5 {[%clk 0:02:58.9]} 4... Qxd5 {[%clk 0:02:55.5]} 5. Ngf3 {[%clk
0:02:56.9]} 5... cxd4 {[%clk 0:02:55.5]} 6. Bc4 {[%clk 0:02:56.9]} 6... Qd6
{[%clk 0:02:55.7]} 7. O-O {[%clk 0:02:51.2]} 7... Nf6 {[%clk 0:02:55.1]} 8. Nb3
{[%clk 0:02:48.7]} 8... Nc6 {[%clk 0:02:53.9]} 9. Nbxd4 {[%clk 0:02:47]} 9...
Nxd4 {[%clk 0:02:53.6]} 10. Qxd4 {[%clk 0:02:40.6]} 10... Qxd4 {[%clk
0:02:53.1]} 11. Nxd4 {[%clk 0:02:41.5]} 11... Bd7 {[%clk 0:02:53.6]} 12. Bf4
{[%clk 0:02:38.1]} 12... Rc8 {[%clk 0:02:50.6]} 13. Bb3 {[%clk 0:02:35.3]} 13...
Bc5 {[%clk 0:02:49.6]} 14. Rad1 {[%clk 0:02:33.7]} 14... O-O {[%clk 0:02:48]}
15. c3 {[%clk 0:02:31.2]} 15... Rfe8 {[%clk 0:02:42.2]} 16. Rfe1 {[%clk
0:02:29.7]} 16... h6 {[%clk 0:02:38.7]} 17. Be5 {[%clk 0:02:27.4]} 17... Ng4
{[%clk 0:02:36.1]} 18. Bg3 {[%clk 0:02:26]} 18... Rcd8 {[%clk 0:02:11.4]} 19. h3
{[%clk 0:02:23.6]} 19... Nf6 {[%clk 0:02:09.5]} 20. Be5 {[%clk 0:02:24.3]} 20...
Bc8 {[%clk 0:02:02.7]} 21. Nb5 {[%clk 0:02:22]} 21... Rxd1 {[%clk 0:01:55.9]}
22. Rxd1 {[%clk 0:02:23.1]} 22... Ne4 {[%clk 0:01:57.3]} 23. Bd4 {[%clk
0:02:21.1]} 23... Rd8 {[%clk 0:01:52.5]} 24. Bxc5 {[%clk 0:02:19]} 24... Rxd1+
{[%clk 0:01:51.6]} 25. Bxd1 {[%clk 0:02:20]} 25... Nxc5 {[%clk 0:01:52.6]} 26.
Nxa7 {[%clk 0:02:18.4]} 26... Bd7 {[%clk 0:01:51.5]} 27. b4 {[%clk 0:02:17]}
27... Ne4 {[%clk 0:01:49.3]} 28. c4 {[%clk 0:02:14.9]} 28... Kf8 {[%clk
0:01:47.4]} 29. c5 {[%clk 0:02:13.3]} 29... Ke7 {[%clk 0:01:45.7]} 30. Bf3
{[%clk 0:02:11.1]} 30... f5 {[%clk 0:01:33.9]} 31. Bxe4 {[%clk 0:02:08.7]} 31...
fxe4 {[%clk 0:01:35.8]} 32. b5 {[%clk 0:02:08.1]} 32... Kd8 {[%clk 0:01:35.4]}
33. Kf1 {[%clk 0:02:06.4]} 33... Kc7 {[%clk 0:01:35.1]} 34. b6+ {[%clk
0:02:04.3]} 34... Kd8 {[%clk 0:01:29.2]} 35. Ke2 {[%clk 0:02:03.3]} 35... Ba4
{[%clk 0:01:25.8]} 36. Ke3 {[%clk 0:02:01.8]} 36... Kd7 {[%clk 0:01:25.6]} 37.
Kxe4 {[%clk 0:02:00.6]} 37... Bc2+ {[%clk 0:01:22.2]} 38. Ke5 {[%clk 0:01:50.4]}
38... Ba4 {[%clk 0:01:22.2]} 39. f4 {[%clk 0:01:39.3]} 39... h5 {[%clk 0:01:14]}
40. g4 {[%clk 0:01:29.8]} 40... h4 {[%clk 0:01:12.5]} 41. f5 {[%clk 0:01:24.4]}
41... exf5 {[%clk 0:01:12.2]} 42. Kxf5 {[%clk 0:01:23.5]} 42... Bc2+ {[%clk
0:00:36.3]} 43. Kg5 {[%clk 0:01:24.4]} 43... Bb1 {[%clk 0:00:34.1]} 44. a4
{[%clk 0:01:21.6]} 44... Ba2 {[%clk 0:00:33.9]} 45. Kxh4 {[%clk 0:01:19.5]}
45... Bd5 {[%clk 0:00:33.6]} 46. Kg5 {[%clk 0:01:14.1]} 46... Ke7 {[%clk
0:00:33.3]} 47. c6 {[%clk 0:01:10.3]} 47... Kd6 {[%clk 0:00:29.1]} 48. c7 {[%clk
0:01:09.9]} 48... Be6 {[%clk 0:00:29.6]} 49. c8=Q {[%clk 0:01:06.8]} 49... Bxc8
{[%clk 0:00:30]} 50. Nxc8+ {[%clk 0:01:07.6]} 50... Kc5 {[%clk 0:00:31.9]} 51.
Kg6 {[%clk 0:01:07]} 51... Kb4 {[%clk 0:00:32.2]} 52. Kxg7 {[%clk 0:01:00.5]}
52... Kxa4 {[%clk 0:00:34.1]} 53. Nd6 {[%clk 0:00:58.4]} 53... Ka5 {[%clk
0:00:34.7]} 54. Nxb7+ {[%clk 0:00:58.9]} 54... Kxb6 {[%clk 0:00:36.6]} 55. Nd6
{[%clk 0:00:59.6]} 55... Kc6 {[%clk 0:00:38.5]} 56. Nf7 {[%clk 0:01:00.6]} 56...
Kd5 {[%clk 0:00:40.4]} 57. h4 {[%clk 0:01:02]} 57... Kd4 {[%clk 0:00:42]} 58. h5
{[%clk 0:01:03.3]} 58... Ke4 {[%clk 0:00:43.9]} 59. h6 {[%clk 0:01:04.7]} 59...
Kf4 {[%clk 0:00:45.8]} 60. h7 {[%clk 0:01:06.1]} 60... Kxg4 {[%clk 0:00:47.7]}
61. h8=Q {[%clk 0:01:06.6]} 61... Kg3 {[%clk 0:00:49.2]} 62. Qh5 {[%clk
0:01:05.8]} 62... Kg2 {[%clk 0:00:49.8]} 63. Qh4 {[%clk 0:01:05.6]} 63... Kf1
{[%clk 0:00:51.7]} 64. Qh3+ {[%clk 0:01:05.7]} 64... Kg1 {[%clk 0:00:52.4]} 65.
Ne5 {[%clk 0:01:05.3]} 65... Kf2 {[%clk 0:00:52.3]} 66. Qf3+ {[%clk 0:01:04]}
66... Ke1 {[%clk 0:00:53.1]} 67. Qg2 {[%clk 0:01:02]} 67... Kd1 {[%clk
0:00:54.3]} 68. Nf3 {[%clk 0:00:47.8]} 68... Kc1 {[%clk 0:00:52.6]} 69. Qd2+
{[%clk 0:00:47.8]} 69... Kb1 {[%clk 0:00:52.7]} 70. Nd4 {[%clk 0:00:45.1]} 70...
Ka1 {[%clk 0:00:53]} 71. Qc3+ {[%clk 0:00:31.2]} 71... Ka2 {[%clk 0:00:50.5]}
72. Qb3+ {[%clk 0:00:30.8]} 72... Ka1 {[%clk 0:00:52.4]} 73. Nc2# {[%clk
0:00:31.9]} 1-0

[Event "*** Titled Tuesday 3|2 Blitz"]
[Site "Chess.com"]
[Date "2016.02.02"]
[Round "2"]
[White "kesarev"]
[Black "MasterLeif"]
[Result "0-1"]
[WhiteElo "2178"]
[BlackElo "2355"]
[TimeControl "180+2"]
[EndTime "11:29:19 PST"]
[Termination "MasterLeif won by resignation"]

1. e4 {[%clk 0:03:00]} 1... e5 {[%clk 0:02:23.5]} 2. d4 {[%clk 0:02:57.7]} 2...
exd4 {[%clk 0:02:22.3]} 3. Qxd4 {[%clk 0:02:58.7]} 3... Nc6 {[%clk 0:02:22.4]}
4. Qe3 {[%clk 0:02:59.7]} 4... Nf6 {[%clk 0:02:20.4]} 5. Nc3 {[%clk 0:03:00.6]}
5... Bb4 {[%clk 0:02:13]} 6. Bd2 {[%clk 0:03:01.5]} 6... O-O {[%clk 0:02:12.1]}
7. O-O-O {[%clk 0:03:02.7]} 7... Re8 {[%clk 0:02:12.8]} 8. Qg3 {[%clk
0:03:03.7]} 8... Rxe4 {[%clk 0:02:12.4]} 9. a3 {[%clk 0:03:04.4]} 9... Ba5
{[%clk 0:01:51.1]} 10. f3 {[%clk 0:02:59.3]} 10... Re8 {[%clk 0:01:49.3]} 11. h4
{[%clk 0:02:21.2]} 11... d6 {[%clk 0:01:41.4]} 12. Nh3 {[%clk 0:01:55.8]} 12...
Bf5 {[%clk 0:01:24.7]} 13. Qf4 {[%clk 0:01:31.1]} 13... Bxh3 {[%clk 0:01:14.4]}
14. Rxh3 {[%clk 0:01:23.7]} 14... Bxc3 {[%clk 0:01:14.5]} 15. Bxc3 {[%clk
0:01:19.9]} 15... Qe7 {[%clk 0:00:54.6]} 16. Rg3 {[%clk 0:00:32.7]} 16... Ne5
{[%clk 0:00:54.8]} 17. Qg5 {[%clk 0:00:23.2]} 17... Ng6 {[%clk 0:00:54.9]} 18.
h5 {[%clk 0:00:18.5]} 18... h6 {[%clk 0:00:39.6]} 19. Bxf6 {[%clk 0:00:17]}
19... hxg5 {[%clk 0:00:40.6]} 20. Bxe7 {[%clk 0:00:17.9]} 20... Nxe7 {[%clk
0:00:42.5]} 21. Rxg5 {[%clk 0:00:19]} 21... Nc6 {[%clk 0:00:33.2]} 22. f4 {[%clk
0:00:15.8]} 22... Rad8 {[%clk 0:00:20.5]} 23. Bd3 {[%clk 0:00:16.4]} 23... Kf8
{[%clk 0:00:20.7]} 24. Kd2 {[%clk 0:00:16.5]} 24... Nd4 {[%clk 0:00:21.3]} 25.
c3 {[%clk 0:00:11.3]} 25... Ne6 {[%clk 0:00:22.8]} 26. Rg4 {[%clk 0:00:12.7]}
26... Nc5 {[%clk 0:00:24.1]} 27. Bc2 {[%clk 0:00:13.2]} 27... Ne4+ {[%clk
0:00:23.1]} 28. Bxe4 {[%clk 0:00:13.8]} 28... Rxe4 {[%clk 0:00:25]} 29. Re1
{[%clk 0:00:11.5]} 29... Rde8 {[%clk 0:00:25.1]} 30. Rxe4 {[%clk 0:00:12.7]}
30... Rxe4 {[%clk 0:00:27]} 31. Kd3 {[%clk 0:00:14.1]} 31... d5 {[%clk
0:00:27.3]} 32. Rg5 {[%clk 0:00:14.6]} 32... c6 {[%clk 0:00:28.3]} 33. g3 {[%clk
0:00:15.5]} 33... f6 {[%clk 0:00:29]} 34. Rg6 {[%clk 0:00:16]} 34... Kf7 {[%clk
0:00:29.8]} 35. b3 {[%clk 0:00:16.5]} 35... Re1 {[%clk 0:00:30.3]} 36. Rg4
{[%clk 0:00:16.6]} 36... Rg1 {[%clk 0:00:29]} 37. Kd4 {[%clk 0:00:16.6]} 37...
b6 {[%clk 0:00:29.4]} 38. c4 {[%clk 0:00:17.7]} 38... dxc4 {[%clk 0:00:23.2]}
39. Kxc4 {[%clk 0:00:16.2]} 39... Rh1 {[%clk 0:00:23.4]} 40. f5 {[%clk
0:00:08.9]} 40... Rxh5 {[%clk 0:00:20.9]} 41. Rd4 {[%clk 0:00:10.2]} 41... Ke7
{[%clk 0:00:20.2]} 42. g4 {[%clk 0:00:10.4]} 42... Rh1 {[%clk 0:00:21.2]} 43.
Re4+ {[%clk 0:00:11.9]} 43... Kd7 {[%clk 0:00:21.8]} 44. Rd4+ {[%clk 0:00:13.3]}
44... Kc7 {[%clk 0:00:21.4]} 45. Re4 {[%clk 0:00:14.8]} 45... Rc1+ {[%clk
0:00:21.4]} 46. Kd3 {[%clk 0:00:14.9]} 46... Rd1+ {[%clk 0:00:22.3]} 47. Kc4
{[%clk 0:00:16.3]} 47... Rd7 {[%clk 0:00:19.6]} 48. Re8 {[%clk 0:00:17.4]} 48...
a5 {[%clk 0:00:19.9]} 49. a4 {[%clk 0:00:18.4]} 49... Rd1 {[%clk 0:00:14.4]} 50.
Rg8 {[%clk 0:00:19.1]} 50... Rd7 {[%clk 0:00:14.9]} 51. Kc3 {[%clk 0:00:17.2]}
51... Re7 {[%clk 0:00:15.4]} 52. Kd4 {[%clk 0:00:17.8]} 52... Kd6 {[%clk
0:00:15.1]} 53. Rd8+ {[%clk 0:00:18]} 53... Rd7 {[%clk 0:00:16.6]} 54. Rg8
{[%clk 0:00:19.6]} 54... b5 {[%clk 0:00:13.9]} 55. axb5 {[%clk 0:00:19.9]} 55...
cxb5 {[%clk 0:00:15.8]} 56. Ra8 {[%clk 0:00:21.4]} 56... Kc6+ {[%clk 0:00:15]}
57. Kc3 {[%clk 0:00:22.3]} 57... Kb6 {[%clk 0:00:14.5]} 58. Rb8+ {[%clk
0:00:23.1]} 58... Ka6 {[%clk 0:00:12.6]} 59. Ra8+ {[%clk 0:00:23.9]} 59... Kb6
{[%clk 0:00:12.5]} 60. Rb8+ {[%clk 0:00:25.1]} 60... Rb7 {[%clk 0:00:12.8]} 61.
Ra8 {[%clk 0:00:26]} 61... Rc7+ {[%clk 0:00:11.3]} 62. Kd4 {[%clk 0:00:26.9]}
62... Rd7+ {[%clk 0:00:12.5]} 63. Ke4 {[%clk 0:00:26]} 63... Rd1 {[%clk
0:00:10.4]} 64. Rb8+ {[%clk 0:00:27.2]} 64... Kc5 {[%clk 0:00:11.2]} 65. Rc8+
{[%clk 0:00:25.5]} 65... Kb4 {[%clk 0:00:11.6]} 66. Rb8 {[%clk 0:00:17.3]} 66...
Rb1 {[%clk 0:00:11]} 67. Rg8 {[%clk 0:00:18.3]} 67... Rxb3 {[%clk 0:00:12]} 68.
Rxg7 {[%clk 0:00:19.9]} 68... a4 {[%clk 0:00:13.9]} 69. g5 {[%clk 0:00:20.9]}
69... fxg5 {[%clk 0:00:14]} 70. f6 {[%clk 0:00:22.4]} 70... Rb1 {[%clk
0:00:13.8]} 71. Rxg5 {[%clk 0:00:23.7]} 71... Re1+ {[%clk 0:00:13.7]} 72. Kd5
{[%clk 0:00:17.7]} 72... a3 {[%clk 0:00:08.9]} 73. Rg4+ {[%clk 0:00:14.4]} 73...
Kb3 {[%clk 0:00:08.4]} 74. Rf4 {[%clk 0:00:15.4]} 74... Re8 {[%clk 0:00:08.4]}
75. Kc5 {[%clk 0:00:13.8]} 75... a2 {[%clk 0:00:08.3]} 76. Rf1 {[%clk
0:00:14.5]} 76... b4 {[%clk 0:00:05.7]} 77. f7 {[%clk 0:00:08.2]} 77... Rf8
{[%clk 0:00:07]} 78. Rf3+ {[%clk 0:00:05.7]} 78... Kb2 {[%clk 0:00:07.7]} 79.
Rf2+ {[%clk 0:00:06.7]} 79... Ka3 {[%clk 0:00:08.6]} 80. Rf1 {[%clk 0:00:07.6]}
80... b3 {[%clk 0:00:06.3]} 81. Kc4 {[%clk 0:00:06.8]} 81... b2 {[%clk
0:00:03.4]} 82. Rf3+ {[%clk 0:00:07.1]} 82... Ka4 {[%clk 0:00:05.1]} 83. Rf6
{[%clk 0:00:08.5]} 83... Rc8+ {[%clk 0:00:05.6]} 84. Kd3 {[%clk 0:00:09.2]}
84... a1=Q {[%clk 0:00:06]} 85. Ra6+ {[%clk 0:00:09.6]} 85... Kb3 {[%clk
0:00:07.4]} 86. Rb6+ {[%clk 0:00:10.8]} 86... Ka2 {[%clk 0:00:08.5]} 87. Ra6+
{[%clk 0:00:12]} 87... Kb1 {[%clk 0:00:09.7]} 88. Rc6 {[%clk 0:00:13.1]} 88...
Rf8 {[%clk 0:00:09.5]} 0-1

[Event "*** Titled Tuesday 3|2 Blitz"]
[Site "Chess.com"]
[Date "2016.02.02"]
[Round "3"]
[White "ikhasu"]
[Black "oggy1984"]
[Result "1-0"]
[WhiteElo "2222"]
[BlackElo "2171"]
[TimeControl "180+2"]
[EndTime "11:33:55 PST"]
[Termination "ikhasu won by resignation"]

1. e4 {[%clk 0:02:19.6]} 1... c6 {[%clk 0:02:59.6]} 2. d4 {[%clk 0:02:13.4]}
2... d5 {[%clk 0:03:01.5]} 3. Nc3 {[%clk 0:02:10.8]} 3... dxe4 {[%clk
0:03:01.6]} 4. Nxe4 {[%clk 0:02:11.7]} 4... Bf5 {[%clk 0:03:03]} 5. Ng3 {[%clk
0:02:12.6]} 5... Bg6 {[%clk 0:03:03.9]} 6. h4 {[%clk 0:02:13.7]} 6... h6 {[%clk
0:03:04.7]} 7. Nf3 {[%clk 0:02:14.8]} 7... Nd7 {[%clk 0:03:05.7]} 8. h5 {[%clk
0:02:16.1]} 8... Bh7 {[%clk 0:03:06.3]} 9. Bd3 {[%clk 0:02:17.7]} 9... Bxd3
{[%clk 0:03:07.7]} 10. Qxd3 {[%clk 0:02:18.7]} 10... Ngf6 {[%clk 0:03:09]} 11.
Bd2 {[%clk 0:02:17.4]} 11... e6 {[%clk 0:03:09.6]} 12. O-O-O {[%clk 0:02:16.9]}
12... Be7 {[%clk 0:03:08.7]} 13. Qe2 {[%clk 0:01:58.7]} 13... O-O {[%clk
0:03:08.7]} 14. Nf1 {[%clk 0:01:59.6]} 14... Qc7 {[%clk 0:03:03.6]} 15. g4
{[%clk 0:01:59.3]} 15... c5 {[%clk 0:02:54.5]} 16. g5 {[%clk 0:01:57.8]} 16...
hxg5 {[%clk 0:02:54.8]} 17. Bxg5 {[%clk 0:01:54.7]} 17... cxd4 {[%clk
0:02:53.9]} 18. h6 {[%clk 0:01:55]} 18... gxh6 {[%clk 0:02:47.2]} 19. Bxh6
{[%clk 0:01:53.8]} 19... Rfc8 {[%clk 0:02:45.5]} 20. Ne3 {[%clk 0:01:35.2]}
20... Ne5 {[%clk 0:02:29.8]} 21. Nxe5 {[%clk 0:01:33.9]} 21... Qxe5 {[%clk
0:02:29.7]} 22. Rdg1+ {[%clk 0:01:33.7]} 22... Kh7 {[%clk 0:02:20.5]} 23. Bg7+
{[%clk 0:01:29.9]} 1-0

[Event "*** Titled Tuesday 3|2 Blitz"]
[Site "Chess.com"]
[Date "2016.02.02"]
[Round "3"]
[White "BillieKimbah"]
[Black "MasterLeif"]
[Result "1-0"]
[WhiteElo "2413"]
[BlackElo "2347"]
[TimeControl "180+2"]
[EndTime "11:34:49 PST"]
[Termination "BillieKimbah won by resignation"]

1. d4 {[%clk 0:02:59.4]} 1... d5 {[%clk 0:02:16.2]} 2. Nf3 {[%clk 0:02:59.9]}
2... Nf6 {[%clk 0:02:16.5]} 3. Bf4 {[%clk 0:03:00.2]} 3... Bf5 {[%clk
0:02:16.5]} 4. e3 {[%clk 0:03:00.4]} 4... e6 {[%clk 0:02:17.7]} 5. c4 {[%clk
0:03:00.7]} 5... c6 {[%clk 0:02:16.9]} 6. Qb3 {[%clk 0:02:58.5]} 6... Qb6 {[%clk
0:02:14.4]} 7. c5 {[%clk 0:02:58.5]} 7... Qxb3 {[%clk 0:02:07.3]} 8. axb3 {[%clk
0:02:59]} 8... Nbd7 {[%clk 0:02:05.6]} 9. b4 {[%clk 0:02:57.7]} 9... Bxb1 {[%clk
0:01:54.7]} 10. Rxb1 {[%clk 0:02:57.9]} 10... a6 {[%clk 0:01:55.5]} 11. h3
{[%clk 0:02:55.6]} 11... Be7 {[%clk 0:01:48.5]} 12. Nd2 {[%clk 0:02:56.2]} 12...
O-O {[%clk 0:01:24.7]} 13. Nb3 {[%clk 0:02:56.2]} 13... Bd8 {[%clk 0:01:21.9]}
14. Ra1 {[%clk 0:02:45.1]} 14... h6 {[%clk 0:01:14.4]} 15. b5 {[%clk 0:02:35.8]}
15... cxb5 {[%clk 0:01:03.5]} 16. Bxb5 {[%clk 0:02:33.9]} 16... Nb8 {[%clk
0:01:03.9]} 17. Bd6 {[%clk 0:02:24.8]} 17... Nc6 {[%clk 0:00:52]} 18. Bxf8
{[%clk 0:02:23.2]} 18... Kxf8 {[%clk 0:00:52.6]} 19. Bxc6 {[%clk 0:02:23.3]}
19... bxc6 {[%clk 0:00:54.5]} 20. Na5 {[%clk 0:02:09.9]} 20... Bxa5+ {[%clk
0:00:44.3]} 21. Rxa5 {[%clk 0:02:07.1]} 21... Nd7 {[%clk 0:00:46.2]} 22. Kd2
{[%clk 0:02:04.5]} 22... Ra7 {[%clk 0:00:44.2]} 23. Rha1 {[%clk 0:02:03.9]}
23... Nb8 {[%clk 0:00:45.7]} 24. R1a3 {[%clk 0:02:03.1]} 24... Rb7 {[%clk
0:00:47.1]} 25. Kc2 {[%clk 0:02:04.1]} 25... Ke7 {[%clk 0:00:48]} 26. Rb3 {[%clk
0:02:04.8]} 1-0

[Event "*** Titled Tuesday 3|2 Blitz"]
[Site "Chess.com"]
[Date "2016.02.02"]
[Round "3"]
[White "rikyshi"]
[Black "MITerryble"]
[Result "0-1"]
[WhiteElo "2071"]
[BlackElo "2605"]
[TimeControl "180+2"]
[EndTime "11:35:38 PST"]
[Termination "MITerryble won on time"]

1. e4 {[%clk 0:02:43.1]} 1... e6 {[%clk 0:02:58.6]} 2. d4 {[%clk 0:02:39.5]}
2... d5 {[%clk 0:02:59.8]} 3. Nc3 {[%clk 0:02:39.6]} 3... Nf6 {[%clk 0:03:00.8]}
4. Bg5 {[%clk 0:02:38]} 4... Bb4 {[%clk 0:03:01.5]} 5. e5 {[%clk 0:02:34.6]}
5... h6 {[%clk 0:03:02.6]} 6. Be3 {[%clk 0:02:33.7]} 6... Ne4 {[%clk 0:03:03.2]}
7. Qg4 {[%clk 0:02:33.4]} 7... Kf8 {[%clk 0:03:04.3]} 8. a3 {[%clk 0:02:31.7]}
8... Bxc3+ {[%clk 0:03:05.3]} 9. bxc3 {[%clk 0:02:30.8]} 9... Nxc3 {[%clk
0:03:07.2]} 10. Bd3 {[%clk 0:02:30.6]} 10... c5 {[%clk 0:03:08.4]} 11. dxc5
{[%clk 0:02:30.9]} 11... Nc6 {[%clk 0:03:09.3]} 12. Nf3 {[%clk 0:02:32.1]} 12...
f5 {[%clk 0:03:10.5]} 13. Qh5 {[%clk 0:02:30.7]} 13... Qe8 {[%clk 0:03:11.3]}
14. Qxe8+ {[%clk 0:02:29.5]} 14... Kxe8 {[%clk 0:03:12.5]} 15. O-O {[%clk
0:02:28.1]} 15... g5 {[%clk 0:02:56.7]} 16. Bd4 {[%clk 0:02:03.9]} 16... Ne4
{[%clk 0:02:55.9]} 17. c3 {[%clk 0:01:58.4]} 17... Bd7 {[%clk 0:02:49.2]} 18.
Bxe4 {[%clk 0:01:59.2]} 18... dxe4 {[%clk 0:02:47.6]} 19. Nd2 {[%clk 0:02:00.2]}
19... Nxd4 {[%clk 0:02:43.7]} 20. cxd4 {[%clk 0:01:59.1]} 20... Bb5 {[%clk
0:02:45]} 21. Rfb1 {[%clk 0:01:59.2]} 21... Ba6 {[%clk 0:02:46.5]} 22. Rb4
{[%clk 0:01:53.2]} 22... Rd8 {[%clk 0:02:42.2]} 23. Re1 {[%clk 0:01:44.3]} 23...
Rh7 {[%clk 0:02:39.5]} 24. f3 {[%clk 0:01:37.7]} 24... Rhd7 {[%clk 0:02:40.3]}
25. Nb3 {[%clk 0:01:30.2]} 25... Bd3 {[%clk 0:02:28.1]} 26. fxe4 {[%clk
0:01:26.7]} 26... Bxe4 {[%clk 0:02:28.6]} 27. Kf2 {[%clk 0:01:16.9]} 27... Kf7
{[%clk 0:02:16.9]} 0-1

[Event "*** Titled Tuesday 3|2 Blitz"]
[Site "Chess.com"]
[Date "2016.02.02"]
[Round "3"]
[White "Zkid"]
[Black "Saitama_Hero"]
[Result "1-0"]
[WhiteElo "2539"]
[BlackElo "2071"]
[TimeControl "180+2"]
[EndTime "11:35:38 PST"]
[Termination "Zkid won by resignation"]

1. e4 {[%clk 0:03:01.9]} 1... d6 {[%clk 0:02:57.5]} 2. d4 {[%clk 0:03:02.5]}
2... Nf6 {[%clk 0:02:59.4]} 3. Nc3 {[%clk 0:03:03.5]} 3... c6 {[%clk 0:03:01]}
4. f4 {[%clk 0:03:03.5]} 4... Qa5 {[%clk 0:02:59.4]} 5. Nf3 {[%clk 0:02:55]}
5... Nxe4 {[%clk 0:02:58.5]} 6. Bd3 {[%clk 0:02:52.3]} 6... Nxc3 {[%clk
0:02:58.7]} 7. bxc3 {[%clk 0:02:53.4]} 7... Bg4 {[%clk 0:02:45.5]} 8. O-O {[%clk
0:02:53]} 8... e6 {[%clk 0:02:45.6]} 9. Rb1 {[%clk 0:02:50.3]} 9... Qc7 {[%clk
0:02:43.3]} 10. f5 {[%clk 0:02:38.4]} 10... e5 {[%clk 0:02:39.3]} 11. dxe5
{[%clk 0:02:34.3]} 11... dxe5 {[%clk 0:02:39.2]} 12. f6 {[%clk 0:02:31.1]} 12...
Bc5+ {[%clk 0:02:32.8]} 13. Kh1 {[%clk 0:02:30.9]} 13... gxf6 {[%clk 0:02:31.7]}
14. Qe1 {[%clk 0:02:29.8]} 14... Nd7 {[%clk 0:02:28.6]} 15. h3 {[%clk
0:02:11.9]} 15... Be6 {[%clk 0:02:25.2]} 16. Nd2 {[%clk 0:02:06]} 16... f5
{[%clk 0:02:18.6]} 17. Bxf5 {[%clk 0:02:02.1]} 17... Bxf5 {[%clk 0:02:20.5]} 18.
Rxf5 {[%clk 0:02:03.4]} 18... O-O-O {[%clk 0:02:21.9]} 19. Ne4 {[%clk
0:02:03.3]} 19... Bb6 {[%clk 0:02:14.8]} 20. Ba3 {[%clk 0:02:01.6]} 20... Nf8
{[%clk 0:02:12.6]} 21. c4 {[%clk 0:01:47.8]} 21... Bd4 {[%clk 0:01:54.2]} 22. c3
{[%clk 0:01:43.9]} 22... Bb6 {[%clk 0:01:47.8]} 23. c5 {[%clk 0:01:44.1]} 23...
Ba5 {[%clk 0:01:48.2]} 24. Nd6+ {[%clk 0:01:35]} 24... Rxd6 {[%clk 0:01:49.7]}
25. cxd6 {[%clk 0:01:36.2]} 25... Qd7 {[%clk 0:01:51]} 26. Qf1 {[%clk
0:01:37.3]} 26... Ng6 {[%clk 0:01:44.4]} 27. Rxf7 {[%clk 0:01:37.1]} 27... Qe6
{[%clk 0:01:40.8]} 28. Rfxb7 {[%clk 0:01:34]} 28... Bb6 {[%clk 0:01:34.3]} 29.
R1xb6 {[%clk 0:01:29.8]} 29... axb6 {[%clk 0:01:33.9]} 30. Qa6 {[%clk
0:01:30.6]} 1-0